Cogmind - Beta 12 X4 @@@ ROGUE MODE // 2022.12.03 @ 01:26:23 Player: Lunatic Blue Result: Destroyed by B-86 Titan with Hardcell Cannon Performance ------------- Evolutions (6) 3000 Regions Visited (15) 3000 Robots Destroyed (60) 300 Value Destroyed (1584) 1584 Prototype IDs (9) 180 Alien Tech Used (0) 0 Bonus (3003) 3003 TOTAL SCORE: 11067 Bonus ------- High Alert Combat Kills 37 Follower Combat Kills 1511 Entered DSFs 500 Met Warlord at Base 500 MAIN.C Attacked Warlord 500 Friendly Fire -45 Cogmind --------- Core Integrity 0/1150 Matter 285/300 Energy 99/100 System Corruption 0% Temperature Cool (9) Movement Core (50) Location -3/Proximity Caves Parts ------- > --- POWER (1) -------- (None) > --- PROPULSION (6) --- (None) > --- UTILITY (9) ------ Visual Processing Unit Core Analyzer Hacking Suite Improved Hacking Suite Improved Hacking Suite Improved Hacking Suite Improved System Shield Improved System Shield Improved System Shield > --- WEAPON (3) ------- Backup Laser III > --- INVENTORY (5) ---- Neutrino Core Makeshift Terrain Scanner Advanced ECM Suite Vortex Rifle (35) Vortex Rifle (35) Peak State ------------ > --- POWER ------------ Micro Nuclear Core > --- PROPULSION ------- VTOL Module Improved VTOL Module Improved VTOL Module Improved VTOL Module Xenon Bombardment Thruster Improved Surge Thruster > --- UTILITY ---------- Large Storage Unit Weight Redist. System Visual Processing Unit Improved Hacking Suite Improved Hacking Suite Improved Hacking Suite Improved System Shield Improved System Shield Improved System Shield > --- WEAPON ----------- Ripper > --- INVENTORY -------- Neutrino Core Quantum Reactor Improved Surge Thruster Improved Surge Thruster Improved Surge Thruster Advanced ECM Suite Improved Hacking Suite Improved Hacking Suite Improved Hacking Suite Improved System Shield Improved System Shield Improved System Shield KE Penetrator [Rating: 73] Favorites ----------- Power Micro Nuclear Core Engine Ion Engine Power Core Micro Nuclear Core Propulsion Improved VTOL Module Treads Light Treads Leg Aluminum Leg Wheel Wheel Hover Unit Backup Propulsion III Flight Unit Improved VTOL Module Utility Improved System Shield Device Improved Heat Sink Storage High-capacity Storage Unit Processor Visual Processing Unit Hackware Improved System Shield Protection Light Armor Plating Weapon Assault Rifle Energy Gun Backup Laser III Energy Cannon Beam Cannon Ballistic Gun Assault Rifle Launcher Grenade Launcher Impact Weapon Power Maul Slashing Weapon Ripper Build | -11 -10 -9 -8 -7 -6 -6 -6 -6 -5 -5 -4 -4 -4 -4 -3 ------- Run | Scr Mat Mat Mat Fac Fac Ext Cet Arc Fac DSF Fac Upp Upp War Pro Slots Evolved 12 | . . 2 2 2 2 . . . 2 . 2 . . . . Power . | . . . . . . . . . . . . . . . . Propulsion 4 | . . . 1 1 2 . . . . . . . . . . Utility 7 | . . 1 1 1 . . . . 2 . 2 . . . . Weapon 1 | . . 1 . . . . . . . . . . . . . Parts Attached 94 | 8 9 9 19 8 2 5 4 3 2 3 5 8 2 4 3 Power 10 | 1 1 2 1 1 . 1 1 . . . 1 . 1 . . Engine 6 | 1 1 2 1 . . 1 . . . . . . . . . Core 4 | . . . . 1 . . 1 . . . 1 . 1 . . Reactor . | . . . . . . . . . . . . . . . . Propulsion 31 | 4 3 1 7 1 2 1 2 . . 2 2 3 1 1 1 Treads 6 | 1 2 . 3 . . . . . . . . . . . . Leg 2 | 2 . . . . . . . . . . . . . . . Wheel 4 | 1 1 1 1 . . . . . . . . . . . . Hover 1 | . . . . . . . . . . . . . 1 . . Flight 18 | . . . 3 1 2 1 2 . . 2 2 3 . 1 1 Utility 31 | 1 3 1 4 5 . 1 1 3 2 . 2 4 . 2 2 Device 7 | . 2 . 2 1 . 1 1 . . . . . . . . Storage 4 | 1 1 . . . . . . 1 . . . 1 . . . Processor 5 | . . 1 1 2 . . . . . . . . . . 1 Hackware 14 | . . . . 2 . . . 2 2 . 2 3 . 2 1 Protection 1 | . . . 1 . . . . . . . . . . . . Artifact . | . . . . . . . . . . . . . . . . Weapon 22 | 2 2 5 7 1 . 2 . . . 1 . 1 . 1 . Energy Gun 7 | . 2 1 3 . . . . . . . . . . 1 . Energy Cannon 1 | . . 1 . . . . . . . . . . . . . Ballistic Gun 8 | 2 . 1 2 . . 1 . . . 1 . 1 . . . Ballistic Cannon . | . . . . . . . . . . . . . . . . Launcher 3 | . . 2 1 . . . . . . . . . . . . Special Weapon . | . . . . . . . . . . . . . . . . Impact Weapon 2 | . . . 1 1 . . . . . . . . . . . Slashing Weapon 1 | . . . . . . 1 . . . . . . . . . Piercing Weapon . | . . . . . . . . . . . . . . . . Special Melee Weapon . | . . . . . . . . . . . . . . . . Unidentified Prototypes 9 | . . 2 5 . . 1 . . . . . . . 1 . Parts Lost 31 | . 2 . 2 . . 3 2 1 . . 1 10 5 2 3 Power 2 | . . . . . . . 1 . . . . . . 1 . Propulsion 15 | . 1 . . . . 1 . . . . 1 7 2 1 2 Utility 8 | . . . 1 . . 1 1 . . . . 2 3 . . Weapon 6 | . 1 . 1 . . 1 . 1 . . . 1 . . 1 Highest Loss Streak 6 | . 1 . 2 . . 2 1 1 . . 1 6 5 2 3 To Critical Strikes . | . . . . . . . . . . . . . . . . Average Slot Usage (%) 83 | . 92 99 97 86 93 84 76 79 82 85 87 80 50 62 54 Engine 5 | . 13 10 9 . . 5 . . . . . . . 4 . Core 1 | . . . . 6 6 . 5 6 5 5 5 4 3 . . Treads 5 | . 13 11 15 . . . . . . . . . . . . Wheel 4 | . 14 11 7 . . . . . . . . . . . . Flight 15 | . . . 3 30 40 36 27 33 29 32 29 27 3 . 1 Device 7 | . 10 11 9 9 6 7 13 7 5 5 5 2 . . . Storage 5 | . 14 11 8 . . . . 4 5 5 5 4 . . . Processor 8 | . . 11 15 15 13 13 7 6 5 5 5 5 5 5 5 Hackware 11 | . . . . 6 13 6 6 12 23 23 31 32 36 35 31 Energy Gun 4 | . 7 13 10 . . . . . . . . . . 8 10 Energy Cannon 1 | . . 11 2 . . . . . . . . . . . . Ballistic Gun 6 | . 17 2 12 . . 5 6 . . . . . . . . Launcher 1 | . . 6 . 7 6 . . . . . . . . . . Impact Weapon 1 | . . . . 7 6 4 . . . . . . . . . Slashing Weapon 1 | . . . . . . 1 6 6 5 5 5 2 . . . Naked Turns . | . . . . . . . . . . . . . . . . Heaviest Build 58 | 14 54 56 58 15 13 17 17 29 29 29 29 29 6 6 4 Greatest Support 35 | 20 20 10 15 20 25 32 26 31 31 35 35 33 12 16 8 Greatest Overweight (x) 18 | 1 5 5 18 . . 1 . . . . . 1 1 1 1 Average Overweight (x) . | . 3 5 4 . . . . . . . . . . . . Largest Inventory Capacity 20 | 8 20 20 20 5 5 5 5 15 15 15 15 15 5 5 5 Average Capacity 11 | 6 17 20 19 5 5 5 5 12 15 15 15 13 5 5 5 Most Carried 20 | 4 17 20 20 5 4 5 5 14 13 15 14 12 5 5 5 Average Carried 9 | 1 10 18 18 4 3 4 4 8 12 13 13 10 4 4 5 Final Capacity 20 | 8 20 20 5 5 5 5 5 15 15 15 15 5 5 5 5 Final Carried 20 | 4 16 20 5 5 3 5 4 14 12 15 13 4 5 5 5 Class Distribution -------------------- 20% | Wizard-Mutant 20% | Mutant 16% | Commander-Sprinter 8% | Scavenger-Mutant 7% | Scavenger-Skirmisher 7% | Sprinter 7% | Hacker-Sprinter 3% | Wizard-Sprinter 3% | Scavenger-Sprinter Dominant Class ---------------- Mutant | -10/Materials Scavenger-Mutant | -9/Materials Scavenger-Skirmisher | -8/Materials Sprinter | -7/Factory Hacker-Sprinter | -6/Factory Commander-Sprinter | -6/Extension Commander-Sprinter | -6/Cetus Commander-Sprinter | -6/Archives Hacker-Sprinter | -5/Factory Hacker-Sprinter | -5/DSF Wizard-Sprinter | -4/Factory Wizard-Mutant | -4/Upper Caves Wizard-Mutant | -4/Upper Caves Wizard-Mutant | -4/Warlord Wizard-Mutant | -3/Proximity Caves Resources | -11 -10 -9 -8 -7 -6 -6 -6 -6 -5 -5 -4 -4 -4 -4 -3 ----------- Run | Scr Mat Mat Mat Fac Fac Ext Cet Arc Fac DSF Fac Upp Upp War Pro Matter Collected 1529 | 171 451 136 119 123 . 183 120 30 . 54 10 60 34 23 15 Remotely . | . . . . . . . . . . . . . . . . Salvage Created 1994 | . 626 435 248 90 . 119 24 286 . 156 10 . . . . Parts 130 | . 35 38 13 6 . 5 . 25 . 4 4 . . . . Haulers Intercepted 4 | . . 1 2 . . . . . . 1 . . . . . Recyclers Shooed 2 | . 2 . . . . . . . . . . . . . . Parts Field Recycled . | . . . . . . . . . . . . . . . . Retrieved Matter . | . . . . . . . . . . . . . . . . Parts Self-Destructed . | . . . . . . . . . . . . . . . . Prevented . | . . . . . . . . . . . . . . . . Kills | -11 -10 -9 -8 -7 -6 -6 -6 -6 -5 -5 -4 -4 -4 -4 -3 ------- Run | Scr Mat Mat Mat Fac Fac Ext Cet Arc Fac DSF Fac Upp Upp War Pro Combat Hostiles Destroyed 32 | . 9 13 4 3 . 2 1 . . . . . . . . Melee 2 | . . . . . . 2 . . . . . . . . . Guns 17 | . 9 5 2 . . . 1 . . . . . . . . Cannons 4 | . . 2 2 . . . . . . . . . . . . AOE 9 | . . 6 . 3 . . . . . . . . . . . Classes Destroyed 11 | . 5 5 1 . . . . . . . . . . . . Worker 3 | . . 1 . 2 . . . . . . . . . . . Builder 4 | . 1 . . 3 . . . . . . . . . . . Hauler 4 | . . 1 2 . . . . . . 1 . . . . . Recycler 2 | . 2 . . . . . . . . . . . . . . Operator 14 | . 2 . . 1 . 1 . 9 . . 1 . . . . Watcher 1 | . 1 . . . . . . . . . . . . . . Swarmer 11 | . . 7 . 3 . . 1 . . . . . . . . Grunt 15 | . 9 2 2 . . 2 . . . . . . . . . Brawler 1 | . . 1 . . . . . . . . . . . . . Sentry 4 | . . 3 1 . . . . . . . . . . . . Hunter 1 | . . . 1 . . . . . . . . . . . . Best Kill Streak 6 | . 5 5 4 5 . 1 1 6 . 1 1 . . . . Combat Bots Only 5 | . 3 5 3 3 . 1 1 . . . . . . . . Max Kills in Single Turn 2 | . 1 2 1 2 . 1 1 1 . 1 1 . . . . Gunslinging . | . . . . . . . . . . . . . . . . Exploded 2 | . . 2 . 2 . . . . . . . . . . . Melee 1 | . . . . . . 1 . . . . . . . . . Uniques/NPCs Destroyed . | . . . . . . . . . . . . . . . . Combat | -11 -10 -9 -8 -7 -6 -6 -6 -6 -5 -5 -4 -4 -4 -4 -3 -------- Run | Scr Mat Mat Mat Fac Fac Ext Cet Arc Fac DSF Fac Upp Upp War Pro Damage Taken 4148 | . 618 449 250 32 . 293 184 142 . 175 31 1005 704 65 200 Core 1522 | . 134 58 . . . 51 10 70 . 38 . 526 551 25 59 Absorbed by Shields 107 | . . . . . . 31 59 . . 17 . . . . . Core Remaining (%) 87 | 100 46 85 100 100 . . . 84 . 96 . . . . . Volleys Fired 125 | . 60 29 13 3 . 1 14 . . 1 . 4 . . . Largest 3 | . 2 3 3 1 . 1 1 . . 1 . 1 . . . Hottest 155 | . 60 130 155 30 . 28 28 . . 33 . 33 . . . Shots Fired 225 | . 109 55 38 3 . 1 14 . . 1 . 4 . . . Gun 185 | . 109 24 32 . . 1 14 . . 1 . 4 . . . Cannon 32 | . . 26 6 . . . . . . . . . . . . Launcher 8 | . . 5 . 3 . . . . . . . . . . . Special . | . . . . . . . . . . . . . . . . Kinetic 129 | . 89 2 18 . . 1 14 . . 1 . 4 . . . Thermal 88 | . 20 48 20 . . . . . . . . . . . . Explosive 8 | . . 5 . 3 . . . . . . . . . . . Electromagnetic . | . . . . . . . . . . . . . . . . Robot Hit Streak 13 | . 13 13 13 4 . 2 8 . . . . 1 . . . Robot Miss Streak 16 | . 3 4 3 . . 2 12 . . 13 . 16 . . . Penetration Max 1 | . . . . . . . . . . . . 1 . . . Secondary Targets 2 | . 2 . . . . . . . . . . . . . . Max Gunslinging Chain 1 | . 1 . . . . . . . . . . . . . . Shots Hit Robots 185 | . 79 31 26 7 . 8 13 18 . 1 1 1 . . . Core Hits 106 | . 25 23 21 6 . 1 20 7 . 1 1 . 1 . . Critical Kills 1 | . 1 . . . . . . . . . . . . . . Critical Parts Destroyed 3 | . . . . 1 . 2 . . . . . . . . . Critical Strikes 6 | . 1 . 1 1 . 2 1 . . . . . . . . Burn 1 | . . . 1 . . . . . . . . . . . . Destroy 1 | . 1 . . . . . . . . . . . . . . Smash 3 | . . . . 1 . 2 . . . . . . . . . Sever 1 | . . . . . . . 1 . . . . . . . . Melee Attacks 59 | . . . . 11 4 17 3 21 . 1 2 . . . . Impact 32 | . . . . 11 4 17 . . . . . . . . . Slashing 27 | . . . . . . . 3 21 . 1 2 . . . . Piercing . | . . . . . . . . . . . . . . . . Sneak Attacks 14 | . . . . 3 . 1 . 8 . 1 1 . . . . Combat Hostiles . | . . . . . . . . . . . . . . . . Follow-up Attacks . | . . . . . . . . . . . . . . . . Damage Inflicted 5397 | . 1020 738 442 853 . 403 321 1362 . 76 113 64 2 3 . Guns 1961 | . 1020 220 371 . . 22 264 . . . . 64 . . . Cannons 330 | . . 259 71 . . . . . . . . . . . . Explosions 710 | . . 259 . 451 . . . . . . . . . . . Melee 2371 | . . . . 402 . 381 37 1362 . 76 113 . . . . Ramming 25 | . . . . . . . 20 . . . . . 2 3 . Kinetic 1460 | . 871 11 228 . . 22 264 . . . . 64 . . . Thermal 1045 | . 149 468 214 214 . . . . . . . . . . . Explosive 496 | . . 259 . 237 . . . . . . . . . . . Electromagnetic . | . . . . . . . . . . . . . . . . Impact 783 | . . . . 402 . 381 . . . . . . . . . Slashing 1588 | . . . . . . . 37 1362 . 76 113 . . . . Piercing . | . . . . . . . . . . . . . . . . Highest Corruption 2 | . . . . 2 . . . . . . . . . . . Average Corruption 2 | . . . . 2 . . . . . . . . . . . Corruption Purged . | . . . . . . . . . . . . . . . . Corruption Blocked . | . . . . . . . . . . . . . . . . Effects 3 | . . . . 3 . . . . . . . . . . . Message Errors 1 | . . . . 1 . . . . . . . . . . . Matter Fused 1 | . . . . 1 . . . . . . . . . . . Alerts 1 | . . . . 1 . . . . . . . . . . . Overload Shots . | . . . . . . . . . . . . . . . . Overflow Damage 1046 | . . 27 . 409 . 115 . 495 . . . . . . . Projectiles . | . . . . . . . . . . . . . . . . Explosions 104 | . . 27 . 77 . . . . . . . . . . . Melee 942 | . . . . 332 . 115 . 495 . . . . . . . Knockbacks 3 | . . . . 2 . 1 . . . . . . . . . Impact 3 | . . . . 2 . 1 . . . . . . . . . Kinetic . | . . . . . . . . . . . . . . . . Secondary . | . . . . . . . . . . . . . . . . Self-Inflicted Damage 34 | . . 12 . . . . 20 . . . . . 1 1 . Shots 1 | . . 1 . . . . . . . . . . . . . Rammed 3 | . . . . . . . . . . . . . 2 1 . Targets Rammed 3 | . . . . . . . . . . . . . 2 1 . Kicked . | . . . . . . . . . . . . . . . . Crushed . | . . . . . . . . . . . . . . . . Highest Temperature 328 | . 20 21 147 . . 328 . 1 . . 10 246 . . . Average Temperature 58 | . 6 7 51 . . 162 . 1 . . 4 89 . . . Received Heat Transfer 1093 | . 366 126 99 . . 117 16 18 . 30 . 111 189 12 9 Siege Activations . | . . . . . . . . . . . . . . . . Robots Corrupted . | . . . . . . . . . . . . . . . . Combat Hostiles . | . . . . . . . . . . . . . . . . Parts Fried 8 | . . . . 7 . 1 . . . . . . . . . Impact Corruptions 12 | . . . . 9 . 3 . . . . . . . . . Robots Melted . | . . . . . . . . . . . . . . . . Combat Hostiles . | . . . . . . . . . . . . . . . . Parts Melted 5 | . . 5 . . . . . . . . . . . . . Heat Transferred 1852 | . 325 968 409 150 . . . . . . . . . . . Parts Sabotaged 4 | . . . . . . . . . . . . . . 4 . Parts Stolen . | . . . . . . . . . . . . . . . . Parts Stripped . | . . . . . . . . . . . . . . . . Power Chain Reactions . | . . . . . . . . . . . . . . . . Missiles Intercepted . | . . . . . . . . . . . . . . . . Alert | -11 -10 -9 -8 -7 -6 -6 -6 -6 -5 -5 -4 -4 -4 -4 -3 ------- Run | Scr Mat Mat Mat Fac Fac Ext Cet Arc Fac DSF Fac Upp Upp War Pro Peak Influence 810 | . 257 634 360 344 232 568 810 569 198 249 143 . . . . Initial 324 | . . 42 221 79 168 113 244 324 198 138 130 . . . . Average 286 | . 118 348 290 231 199 381 495 519 198 202 132 . . . . Maximum Alert Level 3 | . 1 2 1 1 1 2 3 2 . 1 . . . . . Low Security (%) 36 | 100 89 23 3 33 45 13 2 . 100 51 100 . . . . Level 1 37 | . 10 35 96 66 54 30 32 5 . 48 . . . . . Level 2 23 | . . 41 . . . 56 34 94 . . . . . . . Level 3 2 | . . . . . . . 30 . . . . . . . . Level 4 . | . . . . . . . . . . . . . . . . Level 5 . | . . . . . . . . . . . . . . . . High Security . | . . . . . . . . . . . . . . . . Max Security . | . . . . . . . . . . . . . . . . Squads Dispatched 8 | . 2 . . 2 . 1 1 . . 1 1 . . . . Investigation 1 | . . . . . . . 1 . . . . . . . . Extermination . | . . . . . . . . . . . . . . . . Reinforcement 7 | . 2 . . 2 . 1 . . . 1 1 . . . . Assault . | . . . . . . . . . . . . . . . . Garrison . | . . . . . . . . . . . . . . . . Intercept . | . . . . . . . . . . . . . . . . Searches Triggered . | . . . . . . . . . . . . . . . . Construction Impeded 1 | . . . . 1 . . . . . . . . . . . Haulers Reinforced . | . . . . . . . . . . . . . . . . Active Scanning Responses . | . . . . . . . . . . . . . . . . Cargo Convoy Interrupts . | . . . . . . . . . . . . . . . . Stealth | -11 -10 -9 -8 -7 -6 -6 -6 -6 -5 -5 -4 -4 -4 -4 -3 --------- Run | Scr Mat Mat Mat Fac Fac Ext Cet Arc Fac DSF Fac Upp Upp War Pro Distress Signals 5 | . 2 1 . . . 1 1 . . . . . . . . Communications Jammed . | . . . . . . . . . . . . . . . . Distress Signals . | . . . . . . . . . . . . . . . . Times Spotted 154 | . 17 17 11 5 1 26 11 11 . 7 6 9 11 16 6 Peak Tracking Total 15 | . 3 5 5 4 1 7 5 2 . 3 5 5 8 15 6 Tactical Retreats 11 | . . 1 . . . 3 1 . . . . 3 2 . 1 Traps | -11 -10 -9 -8 -7 -6 -6 -6 -6 -5 -5 -4 -4 -4 -4 -3 ------- Run | Scr Mat Mat Mat Fac Fac Ext Cet Arc Fac DSF Fac Upp Upp War Pro Traps Triggered 10 | . 2 . . 2 . 3 . . . 2 1 . . . . Indirectly . | . . . . . . . . . . . . . . . . Trap Hack Attempts . | . . . . . . . . . . . . . . . . Triggered . | . . . . . . . . . . . . . . . . Disarmed . | . . . . . . . . . . . . . . . . Reprogrammed . | . . . . . . . . . . . . . . . . Reused . | . . . . . . . . . . . . . . . . Traps Extracted . | . . . . . . . . . . . . . . . . Installed . | . . . . . . . . . . . . . . . . Triggered 7 | . . . . . . . . . . . . . . 7 . Machines | -11 -10 -9 -8 -7 -6 -6 -6 -6 -5 -5 -4 -4 -4 -4 -3 ---------- Run | Scr Mat Mat Mat Fac Fac Ext Cet Arc Fac DSF Fac Upp Upp War Pro Machines Disabled 9 | . . 2 . 3 . 1 2 1 . . . . . . . Max in Single Turn 3 | . . 1 . 3 . 1 . . . . . . . . . Machines Sabotaged . | . . . . . . . . . . . . . . . . Overloaded Fab Kills . | . . . . . . . . . . . . . . . . Hacking | -11 -10 -9 -8 -7 -6 -6 -6 -6 -5 -5 -4 -4 -4 -4 -3 --------- Run | Scr Mat Mat Mat Fac Fac Ext Cet Arc Fac DSF Fac Upp Upp War Pro Machines Accessed 21 | . 3 3 . 2 1 7 2 . 1 . . . . 2 . Terminals 18 | . 3 3 . 1 1 7 2 . 1 . . . . . . Fabricators . | . . . . . . . . . . . . . . . . Repair Stations . | . . . . . . . . . . . . . . . . Recycling Units . | . . . . . . . . . . . . . . . . Scanalyzers . | . . . . . . . . . . . . . . . . Garrison Access 1 | . . . . 1 . . . . . . . . . . . Total Hacks 55 | . 13 10 . 5 3 12 9 . 1 . . . . 2 . Successful 25 | . 6 6 . 1 . 6 3 . 1 . . . . 2 . Failed 30 | . 7 4 . 4 3 6 6 . . . . . . . . Catastrophic 6 | . . 1 . 1 2 . 2 . . . . . . . . Database Lockouts . | . . . . . . . . . . . . . . . . Manual 23 | . 13 5 . . 3 . 1 . . . . . . 1 . Terminals 52 | . 13 10 . 4 3 12 9 . 1 . . . . . . Fabricators . | . . . . . . . . . . . . . . . . Repair Stations . | . . . . . . . . . . . . . . . . Recycling Units . | . . . . . . . . . . . . . . . . Scanalyzers . | . . . . . . . . . . . . . . . . Garrison Access 1 | . . . . 1 . . . . . . . . . . . Terminal Hacks 20 | . 3 4 . 1 . 6 3 . 1 . . . . 2 . Record 3 | . . . . . . . 3 . . . . . . . . Part Schematic 1 | . . . . 1 . . . . . . . . . . . Robot Analysis 5 | . 3 2 . . . . . . . . . . . . . Open Door 7 | . . . . . . 5 . . . . . . . 2 . Open DSF 1 | . . . . . . . . . 1 . . . . . . Level Access Points 1 | . . 1 . . . . . . . . . . . . . Terminal Index 1 | . . . . . . 1 . . . . . . . . . Unreport Threat 1 | . . 1 . . . . . . . . . . . . . Fabricator Hacks . | . . . . . . . . . . . . . . . . Repair Station Hacks . | . . . . . . . . . . . . . . . . Recycling Unit Hacks . | . . . . . . . . . . . . . . . . Scanalyzer . | . . . . . . . . . . . . . . . . Garrison Access Hacks . | . . . . . . . . . . . . . . . . Unauthorized Hacks 5 | . 3 2 . . . . . . . . . . . . . Terminals 5 | . 3 2 . . . . . . . . . . . . . Botnet 3 | . 2 1 . . . . . . . . . . . . . Operators 2 | . 1 1 . . . . . . . . . . . . . Fabricators . | . . . . . . . . . . . . . . . . Repair Stations . | . . . . . . . . . . . . . . . . Recycling Units . | . . . . . . . . . . . . . . . . Scanalyzers . | . . . . . . . . . . . . . . . . Garrison Access . | . . . . . . . . . . . . . . . . Data Cores Recovered . | . . . . . . . . . . . . . . . . Used . | . . . . . . . . . . . . . . . . Hacking Detections 13 | . 3 3 . 2 1 2 2 . . . . . . . . Full Trace Events 1 | . . . . . . . 1 . . . . . . . . Feedback Events . | . . . . . . . . . . . . . . . . Feedback Blocked . | . . . . . . . . . . . . . . . . Robot Schematics Acquired . | . . . . . . . . . . . . . . . . Robots Built . | . . . . . . . . . . . . . . . . Authchips . | . . . . . . . . . . . . . . . . Time . | . . . . . . . . . . . . . . . . Total Robot Build Rating . | . . . . . . . . . . . . . . . . Part Schematics Acquired 1 | . . . . 1 . . . . . . . . . . . Parts Built . | . . . . . . . . . . . . . . . . Authchips . | . . . . . . . . . . . . . . . . Time . | . . . . . . . . . . . . . . . . Total Part Build Rating . | . . . . . . . . . . . . . . . . Parts Repaired . | . . . . . . . . . . . . . . . . Time . | . . . . . . . . . . . . . . . . Parts Recycled . | . . . . . . . . . . . . . . . . Recycled Matter . | . . . . . . . . . . . . . . . . Retrieved Matter . | . . . . . . . . . . . . . . . . Retrieved Components . | . . . . . . . . . . . . . . . . Parts Scanalyzed . | . . . . . . . . . . . . . . . . Part Schematics Acquired . | . . . . . . . . . . . . . . . . Parts Damaged . | . . . . . . . . . . . . . . . . Bothacking | -11 -10 -9 -8 -7 -6 -6 -6 -6 -5 -5 -4 -4 -4 -4 -3 ------------ Run | Scr Mat Mat Mat Fac Fac Ext Cet Arc Fac DSF Fac Upp Upp War Pro Used RIF Installer . | . . . . . . . . . . . . . . . . Robots Hacked . | . . . . . . . . . . . . . . . . Non-combat . | . . . . . . . . . . . . . . . . Combat . | . . . . . . . . . . . . . . . . Robot Hacks Applied . | . . . . . . . . . . . . . . . . Relay Couplers Released . | . . . . . . . . . . . . . . . . Fabnet Peak Effective % . | . . . . . . . . . . . . . . . . Robots Rewired 16 | . . . . . . 16 . . . . . . . . . Allies Hacked . | . . . . . . . . . . . . . . . . Hacks Repelled . | . . . . . . . . . . . . . . . . Allies | -11 -10 -9 -8 -7 -6 -6 -6 -6 -5 -5 -4 -4 -4 -4 -3 -------- Run | Scr Mat Mat Mat Fac Fac Ext Cet Arc Fac DSF Fac Upp Upp War Pro Total Allies 28 | . . . . . . 24 4 . . . . . . . . Largest Group 10 | . . . . . . 10 10 10 7 7 1 . . . . Highest-Rated Group 667 | . . . . . . 407 667 667 451 451 96 . . . . Highest-Rated Ally 159 | . . . . . . 159 159 159 96 96 96 . . . . Total Orders . | . . . . . . . . . . . . . . . . Ally Attacks 189 | . . . . . . 100 56 17 . 15 1 . . . . Total Damage 4903 | . . . . . . 2564 1438 429 . 472 . . . . . Kills 42 | . . . . . . 18 15 4 . 5 . . . . . Allies Corrupted . | . . . . . . . . . . . . . . . . Allies Melted 1 | . . . . . . 1 . . . . . . . . . Intel | -11 -10 -9 -8 -7 -6 -6 -6 -6 -5 -5 -4 -4 -4 -4 -3 ------- Run | Scr Mat Mat Mat Fac Fac Ext Cet Arc Fac DSF Fac Upp Upp War Pro Robot Analysis Total 5 | . 3 2 . . . . . . . . . . . . . Derelict Logs Recovered 3 | . . . . . . . . . . . . 2 1 . . Drone Launches . | . . . . . . . . . . . . . . . . Drone Recoveries . | . . . . . . . . . . . . . . . . Exploration | -11 -10 -9 -8 -7 -6 -6 -6 -6 -5 -5 -4 -4 -4 -4 -3 ------------- Run | Scr Mat Mat Mat Fac Fac Ext Cet Arc Fac DSF Fac Upp Upp War Pro Turns Passed 3772 | 61 672 351 416 252 55 566 252 144 24 77 39 264 150 348 101 Spaces Moved 4361 | 47 339 156 219 699 176 832 191 199 12 47 102 494 252 452 144 Core 241 | 3 . . 1 . . . . . . . . . 118 117 2 Treads 5 | 4 1 . . . . . . . . . . . . . . Legs 6 | 6 . . . . . . . . . . . . . . . Wheels 704 | 34 338 156 176 . . . . . . . . . . . . Hover 516 | . . . . . . . . . . . . . 92 335 89 Flight 2889 | . . . 42 699 176 832 191 199 12 47 102 494 42 . 53 Fastest Speed 17 | 50 95 155 29 26 23 20 24 24 24 20 20 17 35 50 45 Average Speed 54 | 95 133 155 141 26 23 24 24 24 24 20 21 43 56 69 67 Slowest Speed 950 | 160 320 155 950 26 23 103 27 24 24 24 24 98 100 100 100 Overloaded Moves . | . . . . . . . . . . . . . . . . Propulsion Burnouts . | . . . . . . . . . . . . . . . . Robots Hopped 13 | . . . 2 4 . 6 . . . . . . 1 . . Cave-ins Triggered . | . . . . . . . . . . . . . . . . Exploration Rate (%) 40 | 3 46 24 21 32 9 74 65 91 1 50 4 66 47 80 41 Regions Visited 15 Branch Regions 7 Pre-discovered Areas 2 | . . . . . . . . . . . . 2 . . . Known Exits Taken 7 | . . 1 1 1 1 1 . 1 1 . . . . . . Unknown Exits Taken 7 | 1 1 . . . . . 1 . . . 1 1 1 1 . Scrap Searched 8 | . . . . . . . . . . . . 4 1 . 3 Spaces Dug 19 | . . . . 7 4 8 . . . . . . . . . Terrain Destroyed 91 | . . 55 . 23 4 8 . . . . . 1 . . . Melee 19 | . . . . 7 4 8 . . . . . . . . . Projectile 1 | . . . . . . . . . . . . 1 . . . AOE 71 | . . 55 . 16 . . . . . . . . . . . Terrain Rammed 1 | . . . . . . . 1 . . . . . . . . Walls Destroyed . | . . . . . . . . . . . . . . . . Machines Disabled . | . . . . . . . . . . . . . . . . Actions | -11 -10 -9 -8 -7 -6 -6 -6 -6 -5 -5 -4 -4 -4 -4 -3 --------- Run | Scr Mat Mat Mat Fac Fac Ext Cet Arc Fac DSF Fac Upp Upp War Pro Total 5435 | 60 449 214 308 740 181 1156 376 262 32 110 114 541 259 486 147 Wait 497 | . 23 6 17 . . 159 160 27 19 23 6 30 . 27 . Move 4322 | 46 338 155 214 691 175 819 190 198 11 46 101 493 249 452 144 Hop 12 | . . . 2 3 . 6 . . . . . . 1 . . Pick Up 67 | 4 17 9 8 4 . 5 1 11 . 2 . 1 3 2 . Fast Attach 51 | 8 4 2 11 6 . 5 2 2 . 1 3 2 1 1 3 Attach 33 | . 4 4 4 1 2 . 2 1 2 1 2 6 1 3 . Detach 4 | . . 1 . . . . . . . 1 . 1 . 1 . Swap 10 | . 1 3 4 1 . . . . . 1 . . . . . Drop 68 | 2 2 5 35 7 . 6 3 2 . . . 4 2 . . Fire 125 | . 60 29 13 3 . 1 14 . . 1 . 4 . . . Melee 59 | . . . . 11 4 17 3 21 . 1 2 . . . . Ram 3 | . . . . . . . 1 . . . . . 2 . . Kick . | . . . . . . . . . . . . . . . . Crush . | . . . . . . . . . . . . . . . . Escape Stasis 74 | . . . . 13 . 28 . . . 33 . . . . . Rewire 110 | . . . . . . 110 . . . . . . . . . Trap . | . . . . . . . . . . . . . . . . Miscellaneous . | . . . . . . . . . . . . . . . . Route ------- -11/Scrapyard -10/Materials (discovered 2 exits: *Mat / [*Min]) -9/Materials (discovered 3 exits: *Mat x3) -8/Materials (discovered 2 exits: *Fac / [*Sto]) -7/Factory -6/Factory -6/Extension (discovered 2 exits: *Fac / *Cet) -6/Cetus -6/Archives (discovered 3 exits: *Fac / [*Hub x2]) -5/Factory -5/DSF -4/Factory -4/Upper Caves -4/Upper Caves -4/Warlord -3/Proximity Caves History --------- Turn | Location | Event 11 | -11/Scrapyard | Discovered new exit (range 15) 62 | -11/Scrapyard | Entered Materials 301 | -10/Materials | Build established: Mutant 360 | -10/Materials | Discovered new exit (range 16) 608 | -10/Materials | Core integrity fell below 50% 679 | -10/Materials | Discovered new exit (range 12) 734 | -10/Materials | Entered another Materials area 734 | -9/Materials | Evolved 2 slots: Utility x1, Weapon x1 1043 | -9/Materials | Discovered new exit (range 15) 1054 | -9/Materials | Identified exit to Materials 1085 | -9/Materials | Entered another Materials area 1085 | -8/Materials | Evolved 2 slots: Propulsion x1, Utility x1 1499 | -8/Materials | Discovered new exit (range 5) 1500 | -8/Materials | Discovered new exit (range 15) 1500 | -8/Materials | Identified exit to Factory 1501 | -8/Materials | Entered Factory 1501 | -7/Factory | Evolved 2 slots: Propulsion x1, Utility x1 1735 | -7/Factory | Discovered new exit (range 17) 1753 | -7/Factory | Identified exit to Factory 1753 | -7/Factory | Entered another Factory area 1753 | -6/Factory | Evolved 2 slots: Propulsion x2 1805 | -6/Factory | Discovered new exit (range 12) 1808 | -6/Factory | Identified exit to Extension 1808 | -6/Factory | Entered Extension 1856 | -6/Extension | Rescued a captive Derelict 1862 | -6/Extension | Rescued a captive Derelict 1873 | -6/Extension | Rescued a captive Derelict 1884 | -6/Extension | Rescued a captive Derelict 1888 | -6/Extension | Rescued a captive Derelict 1888 | -6/Extension | Rescued a captive Derelict 1918 | -6/Extension | Rescued a captive Derelict 1994 | -6/Extension | Spotted B-75 Beast 2051 | -6/Extension | Spotted B-75 Beast 2085 | -6/Extension | Rescued A7 2279 | -6/Extension | Discovered new exit (range 10) 2279 | -6/Extension | Discovered new exit (range 6) 2281 | -6/Extension | Identified exit to Factory 2302 | -6/Extension | Identified exit to Cetus 2374 | -6/Extension | Entered Cetus 2374 | -6/Cetus | Accompanied by 10 allies (A7) 2378 | -6/Cetus | Spotted Cetus Guard 2378 | -6/Cetus | Spotted Cetus Guard 2379 | -6/Cetus | Acquired a Cetus Manufacturing Module code from A7 2379 | -6/Cetus | Spotted Cetus Guard 2387 | -6/Cetus | Spotted Cetus Guard 2403 | -6/Cetus | Allies destroyed Cetus Guard 2406 | -6/Cetus | Allies destroyed Cetus Guard 2407 | -6/Cetus | Allies destroyed Cetus Guard 2433 | -6/Cetus | Started Cetus Manufacturing Module 2458 | -6/Cetus | Manufactured an Enhanced Grunt 2466 | -6/Cetus | Discovered new exit (range 17) 2483 | -6/Cetus | Manufactured an Enhanced Grunt 2508 | -6/Cetus | Manufactured an Enhanced Grunt 2533 | -6/Cetus | Manufactured an Enhanced Grunt 2541 | -6/Cetus | Cetus Manufacturing Module disabled 2559 | -6/Cetus | Build established: Commander-Sprinter 2626 | -6/Cetus | Entered Archives 2626 | -6/Archives | Accompanied by 10 allies (A7) 2646 | -6/Archives | Discovered exit to Factory (range 14) 2661 | -6/Archives | Discovered new exit (range 18) 2662 | -6/Archives | Discovered new exit (range 17) 2770 | -6/Archives | Entered Factory 2770 | -5/Factory | Accompanied by 7 allies 2770 | -5/Factory | Evolved 2 slots: Utility x2 2775 | -5/Factory | Identified exit to DSF 2794 | -5/Factory | Entered DSF 2794 | -5/DSF | Accompanied by 7 allies 2811 | -5/DSF | Additional patrols routed to DSF 2842 | -5/DSF | Discovered new exit (range 18) 2871 | -5/DSF | Entered Factory 2871 | -4/Factory | Accompanied by 1 ally 2871 | -4/Factory | Evolved 2 slots: Utility x2 2909 | -4/Factory | Discovered new exit (range 8) 2910 | -4/Factory | Entered Upper Caves 2987 | -4/Upper Caves | Learned location of Quarantine (-2) 3063 | -4/Upper Caves | Learned location of Armory (-4) 3092 | -4/Upper Caves | Attracted the attention of an 0b10 checkpoint 3109 | -4/Upper Caves | Spotted B-86 Titan 3171 | -4/Upper Caves | Lost 6 parts (5n1u) 3172 | -4/Upper Caves | Discovered new exit (range 7) 3174 | -4/Upper Caves | Entered another Upper Caves area 3179 | -4/Upper Caves | Encountered a Warlord checkpoint 3257 | -4/Upper Caves | Attracted the attention of an 0b10 checkpoint 3257 | -4/Upper Caves | Learned Research trap positions 3269 | -4/Upper Caves | Core integrity fell below 50% 3284 | -4/Upper Caves | Core integrity fell below 20% 3310 | -4/Upper Caves | Lost 5 parts (2n3u) 3319 | -4/Upper Caves | Discovered new exit (range 10) 3324 | -4/Upper Caves | Entered Warlord 3451 | -4/Warlord | Build established: Wizard-Mutant 3453 | -4/Warlord | Visited the Vortex Lab 3460 | -4/Warlord | Found Prototype Energy Gun 3461 | -4/Warlord | Found Prototype Energy Gun 3462 | -4/Warlord | Identified Vortex Rifle (x2) 3472 | -4/Warlord | Warlord's base attacked by MAIN.C 3548 | -4/Warlord | Met Warlord 3649 | -4/Warlord | Opened side exit 3663 | -4/Warlord | Discovered new exit (range 10) 3672 | -4/Warlord | Entered Proximity Caves 3773 | -3/Proximity Caves | Spotted B-86 Titan 3773 | -3/Proximity Caves | Destroyed by B-86 Titan with Hardcell Cannon Last Messages --------------- 03743_ Acquired 15 matter. 03744_ Acquired Field Propulsion Drive. 03761_ Searching scrap... 03761_ Found Hacking Suite. 03761_ Found Mak. Sword. 03761_ Found 27 Matter. 03761_ Acquired Hacking Suite. 03764_ Searching scrap... 03764_ Found Imp. Armor Integrity Analyzer. 03764_ Found Core Analyzer. 03764_ Found Adv. Targeting Computer. 03764_ Found 29 Matter. 03765_ Acquired Core Analyzer. 03768_ Slug penetrates Wall. 03769_ Penetrated by Slug. 03769_ Slug penetrates Wall. 03772_ Penetrated by Slug. 03772_ Field Propulsion Drive destroyed. 03773_ Backup Propulsion III destroyed. 03773_ Backup Laser III destroyed. Map ----- +----------------------------------------------------+ | ??????# ### ????#### ####???????????????? | | ????### ## ???# ##?????????????????? | | ???## #?# ## ?## ##????????????????? | | #### #?# #?# ## ##???????????????? | | #?## ## ####????????????? | | ##???# #????????????? | | ### ###????# ##????????????? | | ?# #??????# / #?????????????? | | ##??????# % ##?????????????? | | ##???????# ## ####??????????????? | | ###????????## #### #?????????????????? | | ????????????#### #??# % #?????????????????? | | ???????????????##???## ! ! #?????????????????? | | ??????????????????????# # #?????????????????? | | ??????????????????????# ######?????????????????? | | ???????????????????????# #??????????????????????? | | ???????????????????????# #??????????????????????? | | ???????????????????????# #??????????????????????? | | ???????????????????##?## ##?????????????????????? | | ??????????????????## ## #?????????????????????? | | ?????????????????## #?????????????????????? | | ????????????????## #?????????????????????? | | ???????????????## ##?????????????????????? | | ??????????????## ##???????? #???????????? | | ??????????????# #### BB #???????????? | | ?????????# @ BB #??????????? | | ????????# h h #??????????? | | ????????###### ### % #??????????? | | ?????????????# ??# #?????????? | | ?????????????# ?? #?????????? | | ?????????????# ? #?????????? | | ?????????????? ###### #?????????? | | ?????????????## ??????## #?????????? | | ??????????????#????????## ## ### ##?????????? | | ????????????????????????###?# #???##??????????? | | ?????????????????????????????## #???????????????? | | ??????????????????????????????? #???????????????? | | ???????????????????????????????? #???????????????? | | ???????????????????????????????? ???????????????? | | ????????????????????????????????? ??????????????? | | ?????????????????????????????????????????????????? | | ?????????????????????????????????????????????????? | | ?????????????????????????????????????????????????? | | ?????????????????????????????????????????????????? | | ?????????????????????????????????????????????????? | | ?????????????????????????????????????????????????? | | ?????????????????????????????????????????????????? | | ?????????????????????????????????????????????????? | | ?????????????????????????????????????????????????? | | ?????????????????????????????????????????????????? | +----------------------------------------------------+ Best States ------------- Heat Dissipation 56 Energy Generation 18 Energy Capacity 280 Matter Stores 300 Matter Capacity 300 Sight Range 18 Terrain Scan Density 85 Additional Mass Support 6 Armor Coverage 150 Evasion (%) 66 Core Analysis 6 Recoil Reduction 2 Offensive Hacking 48 Defensive Hacking 48 Item Schematics ----------------- Recoil Nullifier | -7/Factory | Hacked Robot Schematics ------------------ None Fabricated ------------ Nothing Alien Tech Used ----------------- None Achievements -------------- None Challenges ------------ None Game ------ Seed DamperGlidesysDevice Manual? 0 Play Time 00:50:16 Cumulative 119.1 hours Start 2022.12.03 @ 00:36:40 End 2022.12.03 @ 01:26:23 Sessions 1 Manual Loads 0 Difficulty Rogue Special Mode None Game No. 213 Rogue 213 Adventurer 0 Explorer 0 Win Type - Total 2 Types 1/0/1/0/0/0/0/0/0 Lore% 63 Gallery% 71 Achievement% 52 Wizard Run 0 Options --------- ASCII 0 Keyboard 0 Movement Mouse Keybinds 0 Fullscreen 1 Font 18/SmallcapsGlow Map View 76x50 Tactical HUD 1 Map Filters NONE Filters NONE Steam 1 RUN: 1f4c893a-341b-447f-86be-4e93b79ceb1e